fUSD/lending_fUSD_20251105
["ID","MTS","AMOUNT","RATE_DAILY","PERIOD"]
[393202822,1762314643878,-500.0,0.00032876,2]
[393202823,1762314643888,-500.0,0.00032876,2]
[393202824,1762314643897,-500.0,0.00032876,2]
[393202825,1762314643906,-500.0,0.00032876,2]
[393202826,1762314643915,-500.0,0.00032876,2]
[393202827,1762314643925,-500.0,0.00032876,2]
[393202828,1762314643935,-500.0,0.00032876,2]
[393202829,1762314643944,-3896.74,0.00032876,2]
[393202830,1762314643953,-3896.74,0.00032876,2]
[393202831,1762314643965,-3896.74,0.00032876,2]
[393202832,1762314643974,-3896.74,0.00032876,2]
[393202833,1762314643984,-3896.74,0.00032876,2]
[393202834,1762314643993,-3896.74,0.00032876,2]
[393202835,1762314644003,-3896.74,0.00032876,2]
[393202836,1762314644012,-3896.74,0.00032876,2]
[393202837,1762314644021,-3896.74,0.00032876,2]
[393202838,1762314644031,-3896.74,0.00032876,2]
[393202839,1762314644042,-3896.74,0.00032876,2]
[393202840,1762314644052,-3896.74,0.00032876,2]
[393202841,1762314644062,-3896.74,0.00032876,2]
[393202842,1762314644071,-3896.74,0.00032876,2]
[393202843,1762314644080,-3896.74,0.00032876,2]
[393202844,1762314644090,-3896.74,0.00032876,2]
[393202845,1762314644099,-3896.74,0.00032876,2]
[393202846,1762314644109,-3896.74,0.00032876,2]
[393202847,1762314644118,-3896.74,0.00032876,2]
[393202848,1762314644127,-3896.74,0.00032876,2]
[393202849,1762314644135,-3896.74,0.00032876,2]
[393202850,1762314644145,-3896.74,0.00032876,2]
[393202851,1762314644154,-3896.74,0.00032876,2]
[393202852,1762314644163,-3896.86,0.00032876,2]
[393202853,1762314644172,-500.0,0.00032876,2]
[393202854,1762314644181,-500.0,0.00032876,2]
[393202855,1762314644191,-500.0,0.00032876,2]
[393202856,1762314644200,-500.0,0.00032876,2]
[393202857,1762314644209,-193.00321115,0.00032876,2]
[393202858,1762314644219,-300.0,0.00032876,2]
[393202859,1762314644229,-300.0,0.00032876,2]
[393202860,1762314644238,-300.0,0.00032876,2]
[393202861,1762314644247,-300.0,0.00032876,2]
[393202862,1762314644256,-300.0,0.00032876,2]
[393202863,1762314644265,-300.0,0.00032876,2]
[393202864,1762314644275,-300.0,0.00032876,2]
[393202865,1762314644284,-300.0,0.00032876,2]
[393202866,1762314644293,-300.0,0.00032876,2]
[393202867,1762314644302,-259.81972257,0.00032876,2]
[393202868,1762314644311,-218.36398805,0.00032876,2]
[393202869,1762314644321,-500.0,0.00032876,2]
[393202870,1762314644331,-500.0,0.00032876,2]
[393202871,1762314644342,-500.0,0.00032876,2]
[393202872,1762314644351,-501.21418892,0.00032876,2]
[393202873,1762314644360,-301.01083621,0.00032877,120]
[393202874,1762314644370,-150.0,0.00032877,5]
[393202875,1762314644380,-500.0,0.00032877,7]
[393202876,1762314644390,-500.0,0.00032877,7]
[393202877,1762314644400,-500.0,0.00032877,7]
[393202878,1762314644410,-500.0,0.00032877,7]
[393202879,1762314644419,-500.0,0.00032877,7]
[393202880,1762314644428,-500.0,0.00032877,7]
[393202881,1762314644437,-500.0,0.00032877,7]
[393202882,1762314644446,-500.0,0.00032877,7]
[393202883,1762314644455,-500.0,0.00032877,7]
[393202884,1762314644464,-500.0,0.00032877,7]
[393202885,1762314644473,-500.0,0.00032877,7]
[393202886,1762314644483,-500.0,0.00032877,7]
[393202887,1762314644493,-500.0,0.00032877,7]
[393202888,1762314644503,-500.0,0.00032877,7]
[393202889,1762314644512,-500.0,0.00032877,7]
[393202890,1762314644522,-500.0,0.00032877,7]
[393202891,1762314644532,-500.0,0.00032877,7]
[393202892,1762314644542,-500.0,0.00032877,7]
[393202893,1762314644552,-500.0,0.00032877,7]
[393202894,1762314644561,-500.0,0.00032877,7]
[393202895,1762314644571,-500.0,0.00032877,7]
[393202896,1762314644582,-500.0,0.00032877,7]
[393202897,1762314644593,-500.0,0.00032877,7]
[393202898,1762314644603,-634.60302299,0.00032877,7]
[393202899,1762314644614,-500.0,0.00032877,7]
[393202900,1762314644623,-500.0,0.00032877,7]
[393202901,1762314644632,-500.0,0.00032877,7]
[393202902,1762314644642,-500.0,0.00032877,7]
[393202903,1762314644651,-500.0,0.00032877,7]
[393202904,1762314644660,-500.0,0.00032877,7]
[393202905,1762314644669,-500.0,0.00032877,7]
[393202906,1762314644678,-500.0,0.00032877,7]
[393202907,1762314644687,-500.0,0.00032877,7]
[393202908,1762314644696,-500.0,0.00032877,7]
[393202909,1762314644706,-500.0,0.00032877,7]
[393202910,1762314644715,-500.0,0.00032877,7]
[393202911,1762314644724,-500.0,0.00032877,7]
[393202912,1762314644900,-500.0,0.00032877,7]
[393202913,1762314644910,-500.0,0.00032877,7]
[393202914,1762314644920,-500.0,0.00032877,7]
[393202915,1762314644930,-500.0,0.00032877,7]
[393202916,1762314644940,-500.0,0.00032877,7]
[393202917,1762314644950,-500.0,0.00032877,7]
[393202918,1762314644959,-500.0,0.00032877,7]
[393202919,1762314644972,-500.0,0.00032877,7]
[393202920,1762314644982,-500.0,0.00032877,7]
[393202921,1762314644991,-500.0,0.00032877,7]
[393202922,1762314645002,-500.0,0.00032877,7]
[393202923,1762314645011,-500.0,0.00032877,7]
[393202924,1762314645020,-500.0,0.00032877,7]
[393202925,1762314645029,-500.0,0.00032877,7]
[393202926,1762314645039,-500.0,0.00032877,7]
[393202927,1762314645048,-500.0,0.00032877,7]
[393202928,1762314645057,-500.0,0.00032877,7]
[393202929,1762314645066,-500.0,0.00032877,7]
[393202930,1762314645075,-433.0,0.0003299,2]
[393202931,1762314645085,-577.0,0.0003299,2]
[393202932,1762314645095,-155.02,0.0003302,2]
[393202933,1762314645105,-433.0,0.00033127,2]
[393202934,1762314645115,-577.0,0.00033127,2]
[393202935,1762314645124,-477.76462643,0.00033151,7]
[393202936,1762314645133,-13034.191322,0.00033177,3]
[393202937,1762314645142,-610.077,0.00033187,2]
[393202938,1762314645151,-3422.0,0.00033187,2]
[393202939,1762314645160,-1315.0,0.00033187,2]
[393202940,1762314645169,-576.786,0.00033187,2]
[393202941,1762314645179,-1595.0,0.00033187,2]
[393202942,1762314645188,-820.0,0.00033187,2]
[393202943,1762314645198,-812.0,0.00033187,2]
[393202944,1762314645208,-1272.0,0.00033187,2]
[393202945,1762314645217,-2141.0,0.00033187,2]
[393202946,1762314645227,-6473.0,0.00033187,2]
[393202947,1762314645236,-561.824,0.00033187,2]
[393202948,1762314645245,-6656.0,0.00033187,2]
[393202949,1762314645255,-1002.54939721,0.00033189,7]
[393202950,1762314645264,-1000.0,0.00033189,14]
[393202951,1762314645274,-188.85,0.000332,14]
[393202952,1762314645283,-433.0,0.00033264,2]
[393202953,1762314645292,-577.0,0.00033264,2]
[393202954,1762314645302,-152.0,0.00033283,8]
[393202955,1762314645311,-13034.191322,0.00033301,3]
[393202956,1762314645321,-1500.0,0.00033368,5]
[393202957,1762314645330,-433.0,0.00033401,2]
[393202958,1762314645339,-577.0,0.00033401,2]
[393202959,1762314645348,-562.4427637,0.00033421,5]
[393202960,1762314645358,-1000.0,0.00033421,5]
[393202961,1762314645366,-203.91108501,0.00033425,5]
[393202962,1762314645375,-219.23400392,0.00033499,2]
[393202963,1762314645384,-383.63882527,0.00033512,15]
[393202964,1762314645393,-433.0,0.00033538,2]
[393202965,1762314645403,-577.0,0.00033538,2]
[393202966,1762314645412,-885.4422563,0.00033569,2]
[393202967,1762314645421,-9006.04,0.00033579,2]
[393202968,1762314645430,-13034.191322,0.00033592,3]
[393202969,1762314645439,-6827.89757439,0.00033602,2]
[393202970,1762314645448,-13052.46872369,0.00033661,2]
[393202971,1762314645457,-433.0,0.00033675,2]
[393202972,1762314645466,-577.0,0.00033675,2]
[393202973,1762314645475,-300.6164531,0.00033716,3]
[393202974,1762314645484,-885.4422563,0.0003374,2]
[393202975,1762314645494,-219.23400392,0.00033751,2]
[393202976,1762314645503,-433.0,0.00033812,2]
[393202977,1762314645512,-577.0,0.00033812,2]
[393202978,1762314645521,-1256.47893979,0.00033916,5]
[393202979,1762314645531,-433.0,0.00033949,2]
[393202981,1762314645540,-577.0,0.00033949,2]
[393202982,1762314645549,-325.63609116,0.00033968,5]
[393202983,1762314645558,-158.0,0.00034,35]
[393202984,1762314645567,-158.0,0.00034,35]
[393202985,1762314645575,-433.0,0.00034086,2]
[393202986,1762314645585,-577.0,0.00034086,2]
[393202987,1762314645597,-188.85,0.000341,14]
[393202988,1762314645607,-219.23400392,0.00034107,2]
[393202989,1762314645616,-152.0,0.00034127,9]
[393202991,1762314645626,-885.4422563,0.00034178,2]
[393202993,1762314645635,-164.7,0.00034181,30]
[393202994,1762314645644,-433.0,0.00034223,2]
[393202995,1762314645654,-577.0,0.00034223,2]
[393202996,1762314645663,-13034.191322,0.00034261,3]
[393202997,1762314645672,-433.0,0.0003436,2]
[393202998,1762314645681,-577.0,0.0003436,2]
[393202999,1762314645690,-219.23400392,0.00034368,2]
[393203000,1762314645700,-383.63882527,0.00034437,15]
[393203001,1762314645709,-433.0,0.00034497,2]
[393203002,1762314645718,-577.0,0.00034497,2]
[393203003,1762314645728,-885.4422563,0.00034504,2]
[393203004,1762314645737,-219.23400392,0.00034631,2]
[393203005,1762314645747,-433.0,0.00034634,2]
[393203006,1762314645756,-577.0,0.00034634,2]
[393203007,1762314645765,-500.0,0.0003469,2]
[393203008,1762314645775,-885.4422563,0.0003472,2]
[393203009,1762314645784,-312.3738774,0.00034756,5]
[393203010,1762314645793,-433.0,0.00034771,2]
[393203011,1762314645802,-577.0,0.00034771,2]
[393203012,1762314645812,-13034.191322,0.00034857,3]
[393203013,1762314645821,-689.1,0.00034867,30]
[393203014,1762314645832,-885.4422563,0.00034876,2]
[393203015,1762314645842,-433.0,0.00034908,2]
[393203016,1762314645851,-577.0,0.00034908,2]
[393203017,1762314645860,-8682.45668421,0.00034937,5]
[393203018,1762314645869,-152.0,0.00034971,10]
[393203019,1762314645878,-181.24451209,0.00035,2]
[393203020,1762314645887,-433.0,0.00035045,2]
[393203021,1762314645897,-577.0,0.00035045,2]
[393203022,1762314645907,-219.23400392,0.00035048,2]
[393203023,1762314645916,-300.0,0.00035089,7]
[393203024,1762314645926,-375.0,0.00035089,7]
[393203025,1762314645935,-1000.0,0.000351,7]
[393203026,1762314645944,-415.80779948,0.00035123,2]
[393203027,1762314645954,-13052.46872369,0.00035154,2]
[393203029,1762314645967,-444.96050936,0.00035182,2]
[393203031,1762314645976,-594.57313684,0.00035182,2]
[393203033,1762314645985,-2461.35074392,0.00035204,2]
[393203034,1762314645995,-375.0,0.00035226,7]
[393203035,1762314646004,-219.23400392,0.0003526,2]
[393203036,1762314646014,-885.4422563,0.00035266,2]
[393203037,1762314646023,-383.63882527,0.00035363,15]
[393203038,1762314646032,-13034.191322,0.00035371,3]
[393203039,1762314646043,-219.23400392,0.00035426,2]
[393203040,1762314646052,-885.4422563,0.00035498,2]
[393203041,1762314646061,-150.08,0.000355,60]
[393203042,1762314646070,-150.06,0.000355,60]
[393203043,1762314646079,-150.06,0.000355,60]
[393203044,1762314646087,-300.0,0.00035523,2]
[393203045,1762314646097,-155.95,0.0003553,60]
[393203046,1762314646106,-150.06,0.0003553,60]
[393203047,1762314646115,-150.08,0.000356,60]
[393203048,1762314646124,-150.06,0.000356,60]
[393203049,1762314646133,-150.06,0.000356,60]
[393203050,1762314646143,-281.80426583,0.00035605,120]
[393203051,1762314646152,-500.0,0.00035606,2]
[393203052,1762314646161,-26068.3826439,0.00035606,3]
[393203053,1762314646170,-500.0,0.00035616,120]
[393203054,1762314646180,-500.0,0.00035616,120]
[393203055,1762314646189,-500.0,0.00035616,120]
[393203056,1762314646198,-500.0,0.00035616,120]
[393203057,1762314646207,-500.0,0.00035616,120]
[393203058,1762314646217,-500.0,0.00035616,120]
[393203059,1762314646226,-500.0,0.00035616,120]
[393203060,1762314646236,-500.0,0.00035616,120]
[393203061,1762314646245,-500.0,0.00035616,120]
[393203062,1762314646254,-500.0,0.00035616,120]
[393203063,1762314646263,-500.0,0.00035616,120]
[393203064,1762314646272,-500.0,0.00035616,120]
[393203065,1762314646281,-500.0,0.00035616,120]
[393203066,1762314646290,-500.0,0.00035616,120]
[393203067,1762314646299,-500.0,0.00035616,120]
[393203068,1762314646307,-500.0,0.00035616,120]
[393203069,1762314646316,-518.2817857,0.00035616,120]
[393203070,1762314646326,-500.0,0.00035616,7]
[393203071,1762314646335,-500.0,0.00035616,7]
[393203072,1762314646344,-234.73907632,0.00035616,7]
[393203073,1762314646354,-1000.0,0.00035616,5]
[393203074,1762314646363,-2000.0,0.00035616,120]
[393203075,1762314646373,-2000.0,0.00035616,120]
[393203076,1762314646382,-2000.0,0.00035616,120]
[393203077,1762314646391,-2000.0,0.00035616,120]
[393203078,1762314646400,-2000.0,0.00035616,120]
[393203079,1762314646410,-2000.0,0.00035616,120]
[393203080,1762314646419,-2000.0,0.00035616,120]
[393203081,1762314646430,-2003.0,0.00035616,120]
[393203082,1762314646439,-2000.0,0.00035616,120]
[393203083,1762314646448,-2000.0,0.00035616,120]
[393203084,1762314646457,-2000.0,0.00035616,120]
[393203085,1762314646466,-2000.0,0.00035616,120]
[393203086,1762314646476,-2000.0,0.00035616,120]
[393203087,1762314646485,-2000.0,0.00035616,120]
[393203088,1762314646494,-2000.0,0.00035616,120]
[393203089,1762314646503,-2000.0,0.00035616,120]
[393203090,1762314646512,-2000.0,0.00035616,120]
[393203091,1762314646521,-2000.0,0.00035616,120]
[393203092,1762314646530,-2000.0,0.00035616,120]
[393203093,1762314646539,-2000.0,0.00035616,120]
[393203094,1762314646549,-2000.0,0.00035616,120]
[393203095,1762314646559,-2000.0,0.00035616,120]
[393203096,1762314646569,-2000.0,0.00035616,120]
[393203097,1762314646580,-2000.0,0.00035616,120]
[393203098,1762314646592,-2000.0,0.00035616,120]
[393203099,1762314646604,-2000.0,0.00035616,120]
[393203100,1762314646614,-302.0,0.00035616,120]
[393203101,1762314646627,-2000.0,0.00035616,120]
[393203102,1762314646637,-2000.0,0.00035616,120]
[393203103,1762314646648,-2000.0,0.00035616,120]
[393203104,1762314646659,-2000.0,0.00035616,120]
[393203105,1762314646670,-2000.0,0.00035616,120]
[393203106,1762314646681,-2000.0,0.00035616,120]
[393203107,1762314646692,-2000.0,0.00035616,120]
[393203109,1762314646704,-2000.0,0.00035616,120]
[393203110,1762314646715,-2000.0,0.00035616,120]
[393203111,1762314646724,-2000.0,0.00035616,120]
[393203112,1762314646734,-2000.0,0.00035616,120]
[393203113,1762314646744,-2000.0,0.00035616,120]
[393203114,1762314646754,-2000.0,0.00035616,120]
[393203116,1762314646764,-2000.0,0.00035616,120]
[393203117,1762314646774,-2000.0,0.00035616,120]
[393203118,1762314646784,-2000.0,0.00035616,120]
[393203119,1762314646794,-2000.0,0.00035616,120]
[393203120,1762314646804,-2000.0,0.00035616,120]
[393203122,1762314646814,-2000.0,0.00035616,120]
[393203123,1762314646823,-2000.0,0.00035616,120]
[393203124,1762314646833,-2000.0,0.00035616,120]
[393203125,1762314646847,-2000.0,0.00035616,120]
[393203126,1762314646856,-2000.0,0.00035616,120]
[393203127,1762314646866,-2000.0,0.00035616,120]
[393203128,1762314646875,-415.80779946,0.00035626,2]
[393203129,1762314646885,-155.95,0.0003563,60]
[393203130,1762314646894,-150.06,0.0003563,60]
[393203131,1762314646904,-219.23400392,0.00035648,2]
[393203132,1762314646913,-150.08,0.000357,60]
[393203133,1762314646922,-150.06,0.000357,60]
[393203134,1762314646931,-150.06,0.000357,60]
[393203135,1762314646941,-885.4422563,0.00035713,2]
[393203136,1762314646951,-1000.0,0.0003573,14]
[393203137,1762314646961,-155.95,0.0003573,60]
[393203138,1762314646973,-150.06,0.0003573,60]
[393203139,1762314646982,-150.08,0.000358,60]
[393203140,1762314646992,-150.06,0.000358,60]
[393203141,1762314647002,-152.0,0.00035815,11]
[393203142,1762314647011,-155.95,0.0003583,60]
[393203143,1762314647021,-150.06,0.0003583,60]
[393203144,1762314647030,-150.08,0.000359,60]
[393203145,1762314647041,-999.0,0.00035901,120]
[393203146,1762314647051,-155.95,0.0003593,60]
[393203147,1762314647060,-150.06,0.0003593,60]
[393203148,1762314647069,-885.4422563,0.00035934,2]
[393203149,1762314647079,-219.23400392,0.00035994,2]
[393203150,1762314647088,-150.08,0.00036,60]
[393203151,1762314647101,-180.0,0.00036,30]
[393203152,1762314647110,-477.76462643,0.00036,120]
[393203153,1762314647120,-567.78045401,0.00036,120]
[393203154,1762314647129,-155.98,0.0003603,60]
[393203155,1762314647138,-150.06,0.0003603,60]
[393203156,1762314647148,-150.08,0.000361,60]
[393203157,1762314647157,-415.80779946,0.00036128,2]
[393203158,1762314647167,-150.06,0.0003613,60]
[393203159,1762314647176,-885.4422563,0.00036168,2]
[393203160,1762314647185,-607.0,0.00036187,2]
[393203161,1762314647196,-568.213,0.00036187,2]
[393203162,1762314647205,-1315.0,0.00036187,2]
[393203163,1762314647256,-574.0,0.00036187,2]
[393203164,1762314647266,-1595.0,0.00036187,2]
[393203165,1762314647275,-820.0,0.00036187,2]
[393203166,1762314647285,-812.0,0.00036187,2]
[393203167,1762314647294,-1272.0,0.00036187,2]
[393203168,1762314647303,-2141.0,0.00036187,2]
[393203169,1762314647311,-6473.0,0.00036187,2]
[393203170,1762314647320,-559.0,0.00036187,2]
[393203171,1762314647329,-6159.001,0.00036187,2]
[393203172,1762314647338,-150.08,0.000362,60]
[393203173,1762314647351,-202.500631,0.000362,12]
[393203174,1762314647360,-164.7,0.00036211,60]
[393203175,1762314647370,-150.06,0.0003623,60]
[393203176,1762314647380,-383.63882527,0.00036289,15]
[393203177,1762314647390,-150.12951549,0.000363,60]
[393203178,1762314647399,-219.23400392,0.00036341,2]
[393203179,1762314647408,-3843.33991524,0.00036385,2]
[393203180,1762314647418,-202.36431538,0.000365,120]
[393203181,1762314647428,-885.4422563,0.00036564,2]
[393203182,1762314647437,-219.23400392,0.00036605,2]
[393203183,1762314647446,-415.80779946,0.00036631,2]
[393203184,1762314647455,-13052.46872369,0.00036648,2]
[393203185,1762314647464,-152.0,0.00036658,12]
[393203186,1762314647473,-885.4422563,0.00036723,2]
[393203187,1762314647482,-219.23400392,0.00036823,2]
[393203188,1762314647491,-549.09,0.00036834,2]
[393203189,1762314647500,-300.0,0.00036893,2]
[393203190,1762314647509,-5888.0,0.00036948,2]
[393203191,1762314647518,-1000.0,0.00036999,2]
[393203192,1762314647527,-180.0,0.00037,30]
[393203193,1762314647537,-2000.0,0.00037,2]
[393203194,1762314647547,-2000.0,0.00037,2]
[393203195,1762314647555,-2000.0,0.00037,2]
[393203196,1762314647564,-1585.4256,0.00037,2]
[393203197,1762314647574,-219.23400392,0.00037022,2]
[393203198,1762314647583,-885.4422563,0.00037038,2]
[393203199,1762314647597,-698.44,0.00037123,2]
[393203200,1762314647606,-415.80779946,0.00037134,2]
[393203201,1762314647615,-156.8301233,0.000372,120]
[393203202,1762314647624,-383.63882527,0.00037215,15]
[393203203,1762314647634,-2450.86727923,0.00037241,9]
[393203204,1762314647644,-500.0,0.00037283,7]
[393203205,1762314647653,-500.0,0.00037283,7]
[393203206,1762314647662,-500.0,0.00037283,7]
[393203207,1762314647672,-500.0,0.00037283,7]
[393203208,1762314647681,-500.0,0.00037283,7]
[393203209,1762314647691,-500.0,0.00037283,7]
[393203210,1762314647700,-500.0,0.00037283,7]
[393203211,1762314647709,-500.0,0.00037283,7]
[393203212,1762314647719,-215.02,0.00037283,7]
[393203213,1762314647728,-500.0,0.00037283,7]
[393203214,1762314647737,-500.0,0.00037283,7]
[393203215,1762314647747,-500.0,0.00037283,7]
[393203216,1762314647755,-500.0,0.00037283,7]
[393203217,1762314647765,-414.31,0.00037283,7]
[393203218,1762314647774,-500.0,0.00037283,7]
[393203219,1762314647784,-500.0,0.00037283,7]
[393203220,1762314647793,-500.0,0.00037283,7]
[393203221,1762314647802,-500.0,0.00037283,7]
[393203222,1762314647812,-500.0,0.00037283,7]
[393203223,1762314647821,-500.0,0.00037283,7]
[393203224,1762314647831,-500.0,0.00037283,7]
[393203225,1762314647840,-500.0,0.00037283,7]
[393203226,1762314647854,-681.45,0.000373,120]
[393203227,1762314647863,-219.23400392,0.00037334,2]
[393203228,1762314647873,-5888.0,0.00037362,2]
[393203229,1762314647882,-885.4422563,0.00037471,2]
[393203230,1762314647891,-1000.0,0.00037475,7]
[393203231,1762314647901,-1117.76757996,0.00037489,20]
[393203232,1762314647910,-1094.0,0.000375,7]
[393203233,1762314647919,-152.0,0.00037502,13]
[393203234,1762314647929,-353.48,0.00037534,2]
[393203235,1762314647939,-885.4422563,0.00037537,2]
[393203236,1762314647948,-415.80779946,0.00037636,2]
[393203237,1762314647958,-1425.0,0.00037649,2]
[393203238,1762314647973,-418.5,0.00037651,2]
[393203239,1762314647982,-150.0,0.00037651,2]
[393203240,1762314647990,-150.0,0.00037651,2]
[393203241,1762314647999,-150.0,0.00037651,2]
[393203242,1762314648009,-150.0,0.00037651,2]
[393203243,1762314648018,-150.0,0.00037651,2]
[393203244,1762314648027,-150.0,0.00037651,2]
[393203245,1762314648038,-150.0,0.00037651,2]
[393203246,1762314648047,-150.0,0.00037651,2]
[393203247,1762314648057,-1000.0,0.0003766,7]
[393203248,1762314648066,-150.0,0.00037662,7]
[393203249,1762314648075,-219.23400392,0.00037683,2]
[393203250,1762314648085,-1000.0,0.00037718,7]
[393203251,1762314648095,-1000.0,0.00037723,7]
[393203252,1762314648104,-1000.0,0.00037748,7]
[393203253,1762314648113,-162.12037659,0.00037764,7]
[393203254,1762314648122,-1000.0,0.00037771,7]
[393203255,1762314648131,-1000.0,0.00037782,7]
[393203256,1762314648140,-1425.0,0.00037784,2]
[393203257,1762314648149,-1425.0,0.00037788,2]
[393203258,1762314648158,-219.23400407,0.00037851,2]
[393203259,1762314648168,-1425.0,0.00037866,2]
[393203260,1762314648177,-1425.0,0.00037871,2]
[393203261,1762314648186,-13009.77640487,0.0003789,2]
[393203262,1762314648196,-1912.90899,0.0003789,2]
[393203263,1762314648205,-2000.0,0.00037899,2]
[393203264,1762314648213,-1000.0,0.00037948,7]
[393203265,1762314648223,-645.2082595,0.00037966,2]
[393203266,1762314648232,-1000.0,0.00037969,7]
[393203267,1762314648242,-885.4422567,0.00037969,2]
[393203268,1762314648251,-200.0,0.00037971,10]
[393203269,1762314648260,-200.0,0.00037972,10]
[393203270,1762314648269,-200.0,0.00037974,10]
[393203271,1762314648277,-200.0,0.00037975,10]
[393203272,1762314648286,-200.0,0.00037976,10]
[393203273,1762314648295,-162.01367149,0.00037982,11]
[393203274,1762314648303,-231.02536754,0.00038,120]
[393203275,1762314648312,-1428.44597674,0.00038,120]
[393203276,1762314648321,-158.0,0.00038,15]
[393203277,1762314648329,-158.0,0.00038,15]
[393203278,1762314648338,-184.5259881,0.00038,120]
[393203279,1762314648348,-200.27535613,0.00038,120]
[393203280,1762314648357,-168.18087969,0.00038,120]
[393203281,1762314648366,-179.50738991,0.00038,120]
[393203282,1762314648375,-228.74,0.00038,30]
[393203283,1762314648384,-166.0,0.00038,30]
[393203284,1762314648393,-150.0,0.00038032,7]
[393203285,1762314648403,-150.0,0.00038039,20]
[393203286,1762314648412,-354498.83319472,0.00038041,7]
[393203287,1762314648422,-645.2082595,0.00038054,2]
[393203288,1762314648431,-415.63,0.00038082,2]
[393203289,1762314648440,-415.63,0.00038082,2]
[393203290,1762314648451,-150.0,0.00038082,2]
[393203291,1762314648460,-1912.90899,0.000381,2]
[393203292,1762314648470,-1093.6179,0.00038121,3]
[393203293,1762314648479,-2000.0,0.00038121,3]
[393203294,1762314648488,-415.80779946,0.00038139,2]
[393203295,1762314648497,-645.2082595,0.00038141,2]
[393203296,1762314648506,-383.63882527,0.00038141,15]
[393203297,1762314648516,-2490.76331045,0.00038141,2]
[393203298,1762314648526,-223.00932726,0.00038141,7]
[393203299,1762314648535,-623.71439812,0.00038141,2]
[393203300,1762314648544,-190.18293561,0.00038141,2]
[393203301,1762314648555,-428.89678196,0.00038141,2]
[393203302,1762314648564,-722.94928796,0.00038141,2]
[393203303,1762314648573,-13052.46872369,0.00038141,2]
[393203304,1762314648582,-5000.0,0.0003817,5]
[393203305,1762314648591,-2385.0,0.00038174,5]
[393203306,1762314648602,-2500.0,0.00038189,7]
[393203307,1762314648611,-2500.0,0.00038198,7]
[393203308,1762314648620,-2000.0,0.00038199,2]
[393203309,1762314648629,-232.32,0.000382,4]
[393203310,1762314648639,-184.12,0.000382,37]
[393203311,1762314648648,-184.12,0.000382,37]
[393203312,1762314648658,-200.0,0.000382,16]
[393203313,1762314648668,-2500.0,0.00038206,7]
[393203314,1762314648677,-2500.0,0.00038215,7]
[393203315,1762314648686,-698.44,0.00038219,2]
[393203316,1762314648695,-698.44,0.00038219,2]
[393203317,1762314648705,-698.44,0.00038219,2]
[393203318,1762314648714,-239.56426196,0.00038224,3]
[393203319,1762314648723,-2500.0,0.00038224,7]
[393203320,1762314648732,-894.56065585,0.00038231,2]
[393203321,1762314648741,-894.56065585,0.00038231,2]
[393203322,1762314648751,-2500.0,0.00038233,7]
[393203323,1762314648760,-1000.0,0.00038238,7]
[393203324,1762314648770,-151.0,0.00038238,14]
[393203325,1762314648779,-300.0,0.00038238,10]
[393203326,1762314648788,-151.0,0.00038239,31]
[393203327,1762314648798,-151.0,0.00038239,31]
[393203328,1762314648806,-151.0,0.00038239,31]
[393203329,1762314648816,-151.0,0.00038239,31]
[393203330,1762314648825,-151.0,0.00038239,31]